fUSD/lending_fUSD_20251227
["ID","MTS","AMOUNT","RATE_DAILY","PERIOD"]
[399915389,1766867440291,-500.0,0.00015973,2]
[399915390,1766867440300,-500.0,0.00015973,2]
[399915391,1766867440310,-500.0,0.00015973,2]
[399915392,1766867440320,-500.0,0.00015973,2]
[399915393,1766867440330,-500.0,0.00015973,2]
[399915394,1766867440340,-500.0,0.00015973,2]
[399915395,1766867440350,-500.0,0.00015973,2]
[399915396,1766867440360,-500.66742167,0.00015973,2]
[399915397,1766867440370,-500.0,0.00015973,2]
[399915398,1766867440379,-500.0,0.00015973,2]
[399915399,1766867440389,-500.0,0.00015973,2]
[399915400,1766867440399,-500.0,0.00015973,2]
[399915401,1766867440410,-500.0,0.00015973,2]
[399915402,1766867440420,-500.0,0.00015973,2]
[399915403,1766867440430,-150.0,0.00016016,2]
[399915404,1766867440442,-150.0,0.00016016,2]
[399915405,1766867440452,-150.0,0.00016024,2]
[399915406,1766867440462,-150.0,0.00016031,2]
[399915407,1766867440471,-150.0,0.00016052,2]
[399915408,1766867440482,-7396.12730399,0.00016063,2]
[399915409,1766867440491,-150.0,0.0001608,2]
[399915410,1766867440501,-150.0,0.0001608,2]
[399915411,1766867440511,-150.0,0.00016097,2]
[399915412,1766867440521,-242.35189507,0.00016126,2]
[399915413,1766867440531,-282.19614538,0.00016126,2]
[399915414,1766867440540,-150.0,0.00016137,2]
[399915415,1766867440550,-150.0,0.00016137,2]
[399915416,1766867440560,-150.0,0.00016137,2]
[399915417,1766867440570,-150.0,0.00016137,2]
[399915418,1766867440579,-150.0,0.00016137,2]
[399915419,1766867440589,-150.0,0.00016137,2]
[399915420,1766867440599,-150.0,0.00016137,2]
[399915421,1766867440609,-150.0,0.00016164,2]
[399915422,1766867440618,-150.0,0.00016177,2]
[399915423,1766867440628,-7396.12730399,0.00016183,2]
[399915424,1766867440638,-150.0,0.00016191,2]
[399915425,1766867440648,-150.0,0.00016194,2]
[399915426,1766867440657,-150.0,0.00016194,2]
[399915427,1766867440667,-200.0,0.00016219,2]
[399915428,1766867440677,-150.0,0.00016222,2]
[399915429,1766867440686,-150.0,0.00016243,2]
[399915430,1766867440696,-150.0,0.0001625,2]
[399915431,1766867440705,-150.0,0.00016258,2]
[399915432,1766867440715,-150.0,0.00016258,2]
[399915433,1766867440725,-7396.12730399,0.00016302,2]
[399915434,1766867440735,-150.0,0.00016307,2]
[399915435,1766867440744,-150.0,0.00016307,2]
[399915436,1766867440754,-150.0,0.00016307,2]
[399915437,1766867440764,-150.0,0.00016307,2]
[399915438,1766867440773,-150.0,0.00016307,2]
[399915439,1766867440783,-312.0,0.00016317,2]
[399915440,1766867440793,-150.0,0.00016339,2]
[399915441,1766867440803,-1000.0,0.00016342,2]
[399915442,1766867440812,-150.0,0.00016349,2]
[399915443,1766867440822,-150.0,0.00016363,2]
[399915444,1766867440832,-312.0,0.00016389,2]
[399915445,1766867440842,-150.0,0.00016392,2]
[399915446,1766867440852,-1428.93,0.000164,2]
[399915447,1766867440862,-312.0,0.00016413,2]
[399915448,1766867440871,-150.0,0.0001642,2]
[399915449,1766867440881,-150.0,0.0001642,2]
[399915450,1766867440891,-150.0,0.0001642,2]
[399915451,1766867440900,-150.0,0.0001642,2]
[399915452,1766867440910,-150.0,0.0001642,2]
[399915453,1766867440919,-7396.12730399,0.00016422,2]
[399915454,1766867440929,-312.0,0.00016438,2]
[399915455,1766867440939,-500.0,0.00016438,2]
[399915456,1766867440949,-500.0,0.00016438,2]
[399915457,1766867440959,-500.0,0.00016438,2]
[399915458,1766867440968,-500.0,0.00016438,2]
[399915459,1766867440978,-500.0,0.00016438,2]
[399915460,1766867440988,-500.0,0.00016438,2]
[399915461,1766867440998,-500.0,0.00016438,2]
[399915462,1766867441009,-500.0,0.00016438,2]
[399915463,1766867441019,-500.0,0.00016438,2]
[399915464,1766867441029,-500.0,0.00016438,2]
[399915465,1766867441039,-500.0,0.00016438,2]
[399915466,1766867441048,-500.0,0.00016438,2]
[399915467,1766867441058,-500.0,0.00016438,2]
[399915468,1766867441068,-500.0,0.00016438,2]
[399915469,1766867441077,-500.0,0.00016438,2]
[399915470,1766867441087,-500.0,0.00016438,2]
[399915471,1766867441097,-500.0,0.00016438,2]
[399915472,1766867441106,-500.0,0.00016438,2]
[399915473,1766867441116,-500.0,0.00016438,2]
[399915474,1766867441126,-500.0,0.00016438,2]
[399915475,1766867441136,-500.0,0.00016438,2]
[399915476,1766867441145,-500.0,0.00016438,2]
[399915477,1766867441154,-500.0,0.00016438,2]
[399915478,1766867441165,-500.0,0.00016438,2]
[399915479,1766867441175,-500.0,0.00016438,2]
[399915480,1766867441185,-500.0,0.00016438,2]
[399915481,1766867441198,-500.0,0.00016438,2]
[399915482,1766867441208,-562.71996802,0.00016438,2]
[399915483,1766867441217,-500.0,0.00016438,2]
[399915484,1766867441227,-500.0,0.00016438,2]
[399915485,1766867441237,-500.0,0.00016438,2]
[399915486,1766867441247,-500.0,0.00016438,2]
[399915487,1766867441256,-500.0,0.00016438,2]
[399915488,1766867441266,-500.0,0.00016438,2]
[399915489,1766867441275,-500.0,0.00016438,2]
[399915490,1766867441285,-500.0,0.00016438,2]
[399915491,1766867441295,-500.0,0.00016438,2]
[399915492,1766867441305,-500.0,0.00016438,2]
[399915493,1766867441314,-500.0,0.00016438,2]
[399915494,1766867441324,-500.0,0.00016438,2]
[399915495,1766867441334,-500.0,0.00016438,2]
[399915496,1766867441343,-500.0,0.00016438,2]
[399915497,1766867441353,-500.0,0.00016438,2]
[399915498,1766867441363,-500.0,0.00016438,2]
[399915499,1766867441372,-500.0,0.00016438,2]
[399915500,1766867441382,-500.0,0.00016438,2]
[399915501,1766867441392,-500.0,0.00016438,2]
[399915502,1766867441401,-500.0,0.00016438,2]
[399915503,1766867441412,-500.0,0.00016438,2]
[399915504,1766867441421,-500.0,0.00016438,2]
[399915505,1766867441431,-500.0,0.00016438,2]
[399915506,1766867441441,-500.0,0.00016438,2]
[399915507,1766867441450,-500.0,0.00016438,2]
[399915508,1766867441460,-300.0,0.00016438,2]
[399915509,1766867441470,-500.0,0.00016438,2]
[399915510,1766867441479,-500.0,0.00016438,2]
[399915511,1766867441489,-150.0,0.00016438,2]
[399915512,1766867441498,-1992.82,0.00016438,2]
[399915513,1766867441508,-800.0,0.00016438,2]
[399915514,1766867441518,-420.0,0.00016443,2]
[399915515,1766867441527,-150.0,0.00016455,2]
[399915516,1766867441537,-200.0,0.00016462,2]
[399915517,1766867441547,-500.0,0.00016462,2]
[399915518,1766867441556,-325.35337431,0.00016462,2]
[399915519,1766867441567,-150.0,0.00016477,2]
[399915520,1766867441577,-150.0,0.00016477,2]
[399915521,1766867441586,-150.0,0.00016477,2]
[399915522,1766867441597,-150.0,0.00016501,2]
[399915523,1766867441607,-150.0,0.00016501,2]
[399915524,1766867441617,-312.0,0.00016509,2]
[399915525,1766867441627,-500.0,0.00016521,2]
[399915526,1766867441637,-500.0,0.00016521,2]
[399915527,1766867441647,-500.0,0.00016521,2]
[399915528,1766867441658,-500.0,0.00016521,2]
[399915529,1766867441668,-500.0,0.00016521,2]
[399915530,1766867441678,-559.28446362,0.00016521,2]
[399915531,1766867441688,-500.0,0.00016521,2]
[399915532,1766867441699,-500.0,0.00016521,2]
[399915533,1766867441709,-500.0,0.00016521,2]
[399915534,1766867441719,-500.0,0.00016521,2]
[399915535,1766867441728,-500.0,0.00016521,2]
[399915536,1766867441738,-500.0,0.00016521,2]
[399915537,1766867441747,-500.0,0.00016521,2]
[399915538,1766867441757,-150.40009762,0.00016521,2]
[399915539,1766867441767,-207.3850141,0.00016521,2]
[399915540,1766867441776,-1680.0,0.00016525,2]
[399915541,1766867441786,-150.0,0.00016533,2]
[399915542,1766867441797,-150.0,0.00016533,2]
[399915543,1766867441806,-7396.12730399,0.00016541,2]
[399915544,1766867441816,-312.0,0.00016557,2]
[399915545,1766867441826,-150.0,0.00016562,2]
[399915546,1766867441836,-150.0,0.00016562,2]
[399915547,1766867441846,-150.0,0.00016562,2]
[399915548,1766867441857,-312.0,0.00016564,2]
[399915549,1766867441867,-150.0,0.00016582,2]
[399915550,1766867441877,-150.0,0.0001659,2]
[399915551,1766867441887,-312.0,0.00016614,2]
[399915552,1766867441897,-150.0,0.00016647,2]
[399915553,1766867441908,-150.0,0.00016647,2]
[399915554,1766867441919,-150.0,0.00016647,2]
[399915555,1766867441929,-150.0,0.00016647,2]
[399915556,1766867441939,-150.0,0.00016647,2]
[399915557,1766867441949,-7396.12730399,0.00016661,2]
[399915558,1766867442158,-312.0,0.00016662,2]
[399915559,1766867442174,-150.0,0.00016663,2]
[399915560,1766867442185,-150.0,0.00016668,2]
[399915561,1766867442196,-150.0,0.00016703,2]
[399915562,1766867442206,-150.0,0.00016703,2]
[399915563,1766867442216,-150.0,0.00016732,2]
[399915564,1766867442227,-200.45994765,0.00016737,2]
[399915565,1766867442237,-150.0,0.00016744,2]
[399915566,1766867442247,-150.0,0.00016744,2]
[399915567,1766867442257,-150.0,0.0001676,2]
[399915568,1766867442267,-150.0,0.0001676,2]
[399915569,1766867442277,-150.0,0.00016774,2]
[399915570,1766867442287,-7396.12730399,0.0001678,2]
[399915571,1766867442297,-882.72552268,0.0001679,2]
[399915572,1766867442306,-692.29661032,0.0001679,2]
[399915573,1766867442323,-150.0,0.00016816,2]
[399915574,1766867442343,-150.0,0.00016816,2]
[399915575,1766867442353,-150.0,0.00016816,2]
[399915576,1766867442374,-150.0,0.00016825,2]
[399915577,1766867442395,-312.0,0.00016828,2]
[399915578,1766867442417,-926.45060488,0.0001683,2]
[399915579,1766867442439,-882.72552267,0.00016845,2]
[399915580,1766867442453,-692.29661032,0.00016845,2]
[399915581,1766867442463,-320.0,0.00016853,2]
[399915582,1766867442473,-150.0,0.00016873,2]
[399915583,1766867442484,-150.0,0.00016873,2]
[399915584,1766867442494,-150.0,0.0001688,2]
[399915585,1766867442504,-500.0,0.00016889,2]
[399915586,1766867442513,-500.0,0.00016889,2]
[399915587,1766867442522,-500.0,0.00016889,2]
[399915588,1766867442532,-694315.4947165,0.0001689,2]
[399915589,1766867442542,-7582.817818,0.0001689,2]
[399915590,1766867442552,-10000.0,0.000169,2]
[399915591,1766867442562,-882.72552267,0.000169,2]
[399915592,1766867442572,-7396.12730399,0.000169,2]
[399915593,1766867442582,-175.71265842,0.000169,2]
[399915594,1766867442591,-1001.02353359,0.000169,2]
[399915595,1766867442601,-692.29661032,0.000169,2]
[399915596,1766867442612,-150.0,0.00016901,2]
[399915597,1766867442622,-150.0,0.00016905,2]
[399915598,1766867442633,-150.0,0.0001693,2]
[399915599,1766867442643,-168.0,0.00016944,2]
[399915600,1766867442654,-3899.0,0.00016959,2]
[399915601,1766867442665,-500.0,0.00016983,2]
[399915602,1766867442675,-269.96857751,0.00016986,2]
[399915603,1766867442684,-195.83057642,0.00016986,2]
[399915604,1766867442694,-263.57511802,0.00016986,2]
[399915605,1766867442704,-252.88465079,0.00016986,2]
[399915606,1766867442714,-171.10828189,0.00016986,2]
[399915607,1766867442725,-204.18748814,0.00016986,2]
[399915608,1766867442735,-176.41435157,0.00016986,2]
[399915609,1766867442745,-270.7355794,0.00016986,2]
[399915610,1766867442755,-196.28780998,0.00016986,2]
[399915611,1766867442764,-250.03401256,0.00016986,2]
[399915612,1766867442775,-199.77046782,0.00016986,2]
[399915613,1766867442785,-284.46660851,0.00016986,2]
[399915614,1766867442795,-245.69368063,0.00016986,2]
[399915615,1766867442805,-1747.74882944,0.0001699,2]
[399915616,1766867442815,-1747.74882944,0.0001699,2]
[399915617,1766867442826,-1747.74882944,0.0001699,2]
[399915618,1766867442836,-312.0,0.00016994,2]
[399915619,1766867442846,-500.0,0.00016999,2]
[399915620,1766867442856,-500.0,0.00016999,2]
[399915621,1766867442866,-500.0,0.00016999,2]
[399915622,1766867442876,-500.0,0.00016999,2]
[399915623,1766867442885,-500.0,0.00016999,2]
[399915624,1766867442895,-500.0,0.00016999,2]
[399915625,1766867442904,-500.0,0.00016999,2]
[399915626,1766867442914,-500.0,0.00016999,2]
[399915627,1766867442924,-500.0,0.00016999,2]
[399915628,1766867442933,-500.0,0.00016999,2]
[399915629,1766867442942,-500.0,0.00016999,2]
[399915630,1766867442952,-500.0,0.00016999,2]
[399915631,1766867442962,-590.60167877,0.00016999,2]
[399915632,1766867442972,-500.0,0.00016999,2]
[399915633,1766867442982,-500.0,0.00016999,2]
[399915634,1766867442992,-500.0,0.00016999,2]
[399915635,1766867443002,-500.0,0.00016999,2]
[399915636,1766867443011,-500.0,0.00016999,2]
[399915637,1766867443021,-500.0,0.00016999,2]
[399915638,1766867443031,-500.0,0.00016999,2]
[399915639,1766867443041,-500.0,0.00016999,2]
[399915640,1766867443050,-500.0,0.00016999,2]
[399915641,1766867443059,-500.0,0.00016999,2]
[399915642,1766867443069,-500.0,0.00016999,2]
[399915643,1766867443078,-500.0,0.00016999,2]
[399915644,1766867443088,-500.0,0.00016999,2]
[399915645,1766867443098,-332.99,0.00016999,2]
[399915646,1766867443107,-300.0,0.00016999,2]
[399915647,1766867443117,-666.0,0.00016999,2]
[399915648,1766867443126,-865814.7119898,0.00017,2]
[399915649,1766867443304,-954.72283817,0.00017,2]
[399915650,1766867443316,-6035.95388972,0.00017,2]
[399915651,1766867443327,-438.48,0.00017,2]
[399915652,1766867443338,-3689.52,0.00017,2]
[399915653,1766867443350,-484733.72276614,0.00017,2]
[399915654,1766867443359,-494625.46727984,0.00017,2]
[399915655,1766867443378,-200.0,0.00015408,2]
[399915656,1766867443387,-89938.42393929,0.00017,2]
[399915657,1766867443403,-1298.85044763,0.00017,2]
[399915658,1766867443415,-17845.8268315,0.00017,2]
[399915659,1766867443426,-1002.22454196,0.00017,2]
[399915660,1766867443438,-298.51436949,0.00017,2]
[399915661,1766867443457,-60946.93440316,0.00017,2]
[399915662,1766867443469,-1518.12334425,0.00017,2]
[399915663,1766867443481,-265.96,0.00017,2]
[399915664,1766867443493,-7028.84508125,0.00017,2]
[399915665,1766867444338,-151.0,0.00015901,2]
[399915666,1766867444348,-2918.20935709,0.00017,2]
[399915667,1766867444394,-5399.0,0.00017,2]
[399915668,1766867444405,-15061.12767705,0.00017,2]
[399915669,1766867445261,-465.08686962,0.00017,2]
[399915675,1766867445580,-691.62191109,0.00017,2]
[399915676,1766867445597,-10264.48088164,0.00017,2]
[399915677,1766867445608,-44490.98504339,0.00017,2]
[399915678,1766867445625,-1074.08152458,0.00017,2]
[399915679,1766867445662,-674.20667092,0.00017,2]
[399915680,1766867445832,-1096.08550058,0.00017,2]
[399915681,1766867445845,-10705.14774943,0.00017,2]
[399915682,1766867445857,-2074.74606667,0.00017,2]
[399915683,1766867445868,-16382.54989279,0.00017,2]
[399915684,1766867445889,-6652.16,0.00017,2]
[399915685,1766867445901,-1004.86603967,0.00017,2]
[399915686,1766867445949,-503.26943875,0.00017,2]
[399915688,1766867445961,-411.999998,0.00017,2]
[399915734,1766868364652,272.84,0.00013699,2]
[399915766,1766868631635,-150.0,0.00015288,2]
[399915767,1766868631647,-150.0,0.00015288,2]
[399915768,1766868631656,-24.98920754,0.00015288,2]
[399915769,1766868631668,-125.01079246,0.00015288,2]
[399915770,1766868631677,-150.00000001,0.00015288,2]
[399915771,1766868631687,-150.0,0.00015288,2]
[399915772,1766868631696,-150.00000001,0.00015288,2]
[399915773,1766868631705,-150.0,0.00015288,2]
[399915774,1766868631715,-81.79033471,0.00015322,2]
[399915775,1766868631726,-113.20966529,0.00015322,2]
[399915776,1766868631736,-166.66,0.00015357,2]
[399915777,1766868631746,-150.0,0.00015442,2]
[399915778,1766868631755,-1200.0,0.00015499,2]
[399915779,1766868631765,-246.88555572,0.000155,2]
[399915780,1766868631775,-150.0,0.00015597,2]
[399915781,1766868631784,-150.0,0.0001564,2]
[399915782,1766868631794,-166.66,0.0001568,2]
[399915783,1766868631803,-150.0,0.00015751,2]
[399915784,1766868631813,-150.0,0.00015905,2]
[399915785,1766868631823,-201.79336227,0.00015973,2]
[399915786,1766868631833,-166.66,0.00016004,2]
[399915787,1766868631843,-24.13141671,0.00016043,2]
[399915788,1766868631863,-126.86858329,0.00016043,2]
[399915789,1766868631873,-151.0,0.00016043,2]
[399915790,1766868631882,-151.08,0.00016051,2]
[399915791,1766868631896,-150.0,0.0001606,2]
[399915792,1766868631905,-150.0,0.00016214,2]
[399915793,1766868631915,-166.66,0.00016327,2]
[399915794,1766868631925,-166.66,0.00016352,2]
[399915795,1766868631934,-150.0,0.00016369,2]
[399915796,1766868631943,-150.0,0.00016523,2]
[399915797,1766868631953,-150.0,0.00016625,2]
[399915798,1766868631963,-150.0,0.00016626,2]
[399915800,1766868631976,-166.66,0.0001665,2]
[399915802,1766868631985,-232.78075992,0.00016652,2]
[399915804,1766868631995,-200.0,0.00016653,2]
[399915806,1766868632005,-150.0,0.00016677,2]
[399915808,1766868632014,-150.0,0.00016726,2]
[399915810,1766868632024,-150.0,0.00016753,2]
[399915812,1766868632034,-217.71595171,0.00016781,2]
[399915814,1766868632044,-399.00542921,0.000168,2]
[399915816,1766868632054,-547.44591947,0.000168,2]
[399915818,1766868632066,-1242.82150411,0.000168,2]
[399915821,1766868632089,-564.489387,0.000168,2]
[399915952,1766868637723,-145.24318942,0.000168,2]
[399915953,1766868637734,-152.15987236,0.000168,2]
[399915954,1766868637743,-306.59693822,0.00016811,2]
[399915955,1766868637755,-92.40849099,0.00016811,2]
[399915956,1766868637764,-195.0,0.00016816,2]
[399915957,1766868637773,-347.75704666,0.00016816,2]
[399915958,1766868637783,-399.00542921,0.00016822,2]
[399915959,1766868637792,-150.0,0.00016832,2]
[399915960,1766868637802,-399.00542921,0.00016833,2]
[399915961,1766868637811,-399.00542921,0.00016844,2]
[399915962,1766868637821,-399.00542921,0.00016856,2]
[399915963,1766868637830,-200.0,0.00016863,2]
[399915965,1766868637840,-200.0,0.00016864,2]
[399915966,1766868637849,-399.00542921,0.00016867,2]
[399915967,1766868637859,-399.00542921,0.00016878,2]
[399915968,1766868637869,-399.00542921,0.00016889,2]
[399915969,1766868637881,-300.0,0.00016893,2]
[399915971,1766868637891,-399.00542921,0.000169,2]
[399915972,1766868637901,-667.34902238,0.000169,2]
[399915974,1766868637910,-837.7910611,0.000169,2]
[399915976,1766868637920,-174.21391135,0.000169,2]
[399915978,1766868637930,-188.17872434,0.000169,2]
[399915980,1766868637939,-175.71265842,0.000169,2]
[399915982,1766868637949,-2488.76673283,0.000169,2]
[399915983,1766868637958,-2241.0,0.000169,2]
[399915985,1766868637969,-150.0,0.00016973,2]
[399915987,1766868637978,-150.0,0.00016973,2]
[399915989,1766868637988,-166.66,0.00016974,2]
[399915990,1766868637997,-262.39466146,0.00016986,2]
[399915992,1766868638007,-290.0,0.00016989,2]
[399915993,1766868638017,-300.0,0.00016999,2]
[399915994,1766868638026,-666.0,0.00016999,2]
[399915995,1766868638036,-13812.81062248,0.00017,2]
[399915996,1766868638053,-90348.5886691,0.00017,2]
[399915998,1766868639913,-876.61,0.00017,2]
[399915999,1766868640076,-97639.96589887,0.00017,2]
[399916012,1766868643287,-1762.677248,0.00017,2]
[399916013,1766868644039,-12558.16716273,0.00017,2]
[399916014,1766868644051,-611.755986,0.00017,2]
[399916020,1766868645874,-151.0,0.00016505,2]
[399916021,1766868645884,-268.99999999,0.00017,2]
[399916022,1766868645896,-964.8,0.00017,2]
[399916073,1766869831989,-335.26580545,0.00015954,2]
[399916074,1766869832103,-284.77163,0.00015954,2]
[399916075,1766869832165,-379.96256455,0.00015954,2]
[399916076,1766869832176,-1845.93743545,0.00015992,2]
[399916077,1766869832190,-1014.02545008,0.00015992,2]
[399916078,1766869832206,-103.63711447,0.00015992,2]
[399916079,1766869832217,-200.0,0.00015992,2]
[399916080,1766869832229,-843.0,0.00016124,2]
[399916081,1766869832241,-999.0,0.00016125,3]
[399916082,1766869832252,-248.61238286,0.0001615,2]
[399916083,1766869832263,-300.0,0.00016399,2]
[399916084,1766869832276,-2749.82852475,0.000164,2]
[399916085,1766869832287,-1197.26626109,0.000164,2]
[399916086,1766869832298,-165.00832012,0.000164,2]
[399916087,1766869832319,-701.4650345,0.000164,2]
[399916088,1766869832330,-2749.82852475,0.00016456,2]
[399916089,1766869832341,-1197.26626101,0.00016456,2]
[399916090,1766869832352,-151.0,0.00016497,2]
[399916091,1766869832362,-49.89076216,0.00016497,2]
[399916092,1766869832386,-101.10923784,0.00016497,2]
[399916093,1766869832398,-898.56758471,0.000165,2]
[399916183,1766869837851,-624.134,0.000165,2]
[399916184,1766869837865,-356.0188694,0.000165,2]
[399916185,1766869837911,-3120.63070504,0.000165,2]
[399916186,1766869837925,-593.27536952,0.000165,2]
[399916187,1766869837974,-18076.96787804,0.000165,2]
[399916188,1766869837986,-1086.8797393,0.000165,2]
[399916189,1766869837998,-722.46490153,0.000165,2]
[399916190,1766869838010,-778.58817429,0.000165,2]
[399916197,1766869839867,-386.49005528,0.000165,2]
[399916198,1766869839879,-1219.4810845,0.000165,2]
[399916199,1766869839894,-124640.20355682,0.000165,2]
[399916200,1766869839906,-445.1252,0.000165,2]
[399916201,1766869839919,-2732.7300008,0.000165,2]
[399916202,1766869839931,-474.61882555,0.000165,2]
[399916203,1766869839944,-801.50537532,0.000165,2]
[399916204,1766869839956,-443.58598797,0.000165,2]
[399916205,1766869839971,-1588.82115271,0.000165,2]
[399916206,1766869839982,-801.04957216,0.000165,2]
[399916207,1766869839994,-394.95440656,0.000165,2]
[399916208,1766869840010,-616687.8464605,0.000165,2]
[399916209,1766869840020,-2749.82852475,0.00016511,2]
[399916210,1766869840031,-1197.26626101,0.00016511,2]
[399916211,1766869840041,-2749.82852475,0.00016567,2]
[399916212,1766869840051,-1197.26626101,0.00016567,2]
[399916213,1766869840062,-236.0922,0.0001659,2]
[399916214,1766869840071,-151.0,0.0001659,2]
[399916215,1766869840082,-2500.0,0.000166,2]
[399916216,1766869840092,-2749.82852475,0.00016622,2]
[399916217,1766869840102,-1197.26626101,0.00016622,2]
[399916218,1766869840112,-2749.82852475,0.00016678,2]
[399916219,1766869840122,-1197.26626101,0.00016678,2]
[399916220,1766869840132,-595.37131296,0.0001669,2]
[399916221,1766869840142,-500.0,0.00016699,2]
[399916222,1766869840154,-500.0,0.00016699,2]
[399916223,1766869840164,-454.07844698,0.00016699,2]
[399916224,1766869840175,-500.0,0.00016699,2]
[399916225,1766869840186,-486.2719968,0.00016699,2]
[399916226,1766869840197,-500.0,0.00016699,2]
[399916227,1766869840207,-500.0,0.00016699,2]
[399916228,1766869840218,-500.0,0.00016699,2]
[399916229,1766869840229,-500.0,0.00016699,2]
[399916230,1766869840240,-500.0,0.00016699,2]
[399916231,1766869840250,-500.0,0.00016699,2]
[399916232,1766869840260,-500.0,0.00016699,2]
[399916234,1766869840271,-500.0,0.00016699,2]
[399916236,1766869840281,-500.0,0.00016699,2]
[399916238,1766869840292,-500.0,0.00016699,2]
[399916240,1766869840302,-500.0,0.00016699,2]
[399916242,1766869840312,-500.0,0.00016699,2]
[399916243,1766869840322,-500.0,0.00016699,2]
[399916245,1766869840333,-275.25913982,0.00016699,2]
[399916247,1766869840343,-500.0,0.00016699,2]
[399916249,1766869840353,-500.0,0.00016699,2]
[399916251,1766869840363,-500.0,0.00016699,2]
[399916253,1766869840373,-544.58179129,0.00016699,2]
[399916255,1766869840383,-1628.12,0.00016699,2]
[399916257,1766869840392,-500.0,0.00016699,2]
[399916259,1766869840402,-500.0,0.00016699,2]
[399916261,1766869840412,-400.0,0.00016699,2]
[399916263,1766869840422,-502.47800525,0.00016699,2]
[399916265,1766869840431,-500.0,0.00016699,2]
[399916267,1766869840443,-500.0,0.00016699,2]
[399916269,1766869840453,-500.0,0.00016699,2]
[399916271,1766869840463,-500.0,0.00016699,2]
[399916273,1766869840473,-150.0,0.00016699,2]
[399916275,1766869840482,-2749.82852475,0.00016733,2]
[399916277,1766869840492,-1197.26626101,0.00016733,2]
[399916279,1766869840506,-2749.82852475,0.00016789,2]
[399916281,1766869840515,-1197.26626101,0.00016789,2]
[399916283,1766869840526,-2749.82852475,0.00016844,2]
[399916285,1766869840535,-1197.26626101,0.00016844,2]
[399916287,1766869840545,-200.0,0.00016864,2]
[399916289,1766869840555,-151.0,0.00016897,2]
[399916291,1766869840575,-10000.0,0.000169,2]
[399916292,1766869840585,-1000.0,0.000169,2]
[399916293,1766869840595,-152.15987236,0.000169,2]
[399916294,1766869840605,-2749.82852475,0.000169,2]
[399916295,1766869840615,-444.89934826,0.000169,2]
[399916296,1766869840624,-1197.26626101,0.000169,2]
[399916297,1766869840634,-1888.0,0.000169,2]
[399916298,1766869840643,-200.0,0.00016973,2]
[399916299,1766869840653,-151.0,0.00016997,2]
[399916300,1766869840662,-300.0,0.00016999,2]
[399916301,1766869840671,-554.68,0.00016999,2]
[399916302,1766869840682,-26149.93651508,0.00017,2]
[399916303,1766869840699,-600.0,0.00017,2]
[399916304,1766869840710,-959.37255751,0.00017,2]
[399916305,1766869840721,-448.65345497,0.00017,2]
[399916306,1766869840732,-1530.31147754,0.00017,2]
[399916307,1766869840744,-876.54,0.00017,2]
[399916308,1766869840755,-278.820009,0.00017,2]
[399916309,1766869840775,-1459160.75033624,0.00017,2]
[399916310,1766869840785,-2379016.84656773,0.00017,2]
[399916311,1766869840797,-57321.63059446,0.00017,2]
[399916312,1766869840809,-500.0,0.00017,2]
[399916313,1766869840820,-4100.14865549,0.00017,2]
[399916317,1766869843484,-150.0,0.00016045,2]
[399916318,1766869843494,-150.0,0.00017,2]